[Event "Late-Titled-Tuesday-Blitz-March-05-2024"]
[Site "Chess.com"]
[Date "2024.03.05"]
[Round "2"]
[White "TokChess"]
[Black "lamomiajunior"]
[Result "0-1"]
[WhiteElo "2532"]
[BlackElo "2716"]
[TimeControl "180+1"]
[EndTime "14:16:42 PST"]
[Termination "lamomiajunior won by resignation"]

1. e4 {[%clk 0:02:59.6]} 1... g6 {[%clk 0:03:00.6]} 2. Nf3 {[%clk 0:02:58.4]}
2... Bg7 {[%clk 0:03:01.2]} 3. Bc4 {[%clk 0:02:55]} 3... e6 {[%clk 0:03:00.7]}
4. d3 {[%clk 0:02:53.1]} 4... d6 {[%clk 0:03:01]} 5. O-O {[%clk 0:02:51.8]} 5...
Ne7 {[%clk 0:03:01.5]} 6. a4 {[%clk 0:02:51.7]} 6... O-O {[%clk 0:03:01.7]} 7.
Bb3 {[%clk 0:02:49.7]} 7... a5 {[%clk 0:03:01.5]} 8. Re1 {[%clk 0:02:49.3]} 8...
b6 {[%clk 0:03:01.6]} 9. Nbd2 {[%clk 0:02:45.8]} 9... Bb7 {[%clk 0:03:02.1]} 10.
Nf1 {[%clk 0:02:45.8]} 10... Nd7 {[%clk 0:03:02.5]} 11. c3 {[%clk 0:02:45.8]}
11... d5 {[%clk 0:02:56]} 12. e5 {[%clk 0:02:40.4]} 12... c5 {[%clk 0:02:55.1]}
13. Ng3 {[%clk 0:02:36.1]} 13... Rc8 {[%clk 0:02:54.4]} 14. Bc2 {[%clk
0:02:32.9]} 14... d4 {[%clk 0:02:51.6]} 15. Bf4 {[%clk 0:01:31.1]} 15... h6
{[%clk 0:02:48.3]} 16. h4 {[%clk 0:01:05.2]} 16... dxc3 {[%clk 0:02:41.3]} 17.
bxc3 {[%clk 0:01:06.1]} 17... Bxf3 {[%clk 0:02:38.6]} 18. Qxf3 {[%clk
0:01:03.7]} 18... Nd5 {[%clk 0:02:39.5]} 19. Bb3 {[%clk 0:00:36.6]} 19... Nxc3
{[%clk 0:02:24.3]} 20. Rac1 {[%clk 0:00:33]} 20... Nd5 {[%clk 0:02:23]} 21. Bxd5
{[%clk 0:00:31.1]} 21... exd5 {[%clk 0:02:23.9]} 22. Qxd5 {[%clk 0:00:31.2]}
22... Qxh4 {[%clk 0:02:17.9]} 23. Qxd7 {[%clk 0:00:16]} 23... Qxf4 {[%clk
0:02:17.1]} 24. Rc4 {[%clk 0:00:15.9]} 24... Qd2 {[%clk 0:02:09.1]} 25. Re2
{[%clk 0:00:11.9]} 25... Qd1+ {[%clk 0:02:08.3]} 26. Kh2 {[%clk 0:00:12.4]}
26... Rcd8 {[%clk 0:02:08.8]} 27. Qc6 {[%clk 0:00:10.5]} 27... Qxd3 {[%clk
0:02:07.7]} 28. Rce4 {[%clk 0:00:07]} 28... Qb3 {[%clk 0:01:47.9]} 29. R2e3
{[%clk 0:00:06]} 29... Qe6 {[%clk 0:01:46.8]} 30. Qxe6 {[%clk 0:00:04.6]} 30...
fxe6 {[%clk 0:01:47.1]} 31. f3 {[%clk 0:00:04.1]} 31... Rd5 {[%clk 0:01:41]} 32.
f4 {[%clk 0:00:04.7]} 32... Rd4 {[%clk 0:01:39.6]} 33. Rxd4 {[%clk 0:00:03.8]}
33... cxd4 {[%clk 0:01:40.5]} 34. Re4 {[%clk 0:00:04.7]} 34... Rd8 {[%clk
0:01:40.3]} 35. Nf1 {[%clk 0:00:04]} 35... Bf8 {[%clk 0:01:38.9]} 36. Kg3 {[%clk
0:00:04.2]} 36... d3 {[%clk 0:01:38.7]} 37. Re1 {[%clk 0:00:02]} 37... Bb4
{[%clk 0:01:38.5]} 38. Rd1 {[%clk 0:00:02.1]} 38... d2 {[%clk 0:01:37.5]} 39.
Kf3 {[%clk 0:00:02.5]} 39... Kf7 {[%clk 0:01:37.2]} 40. g3 {[%clk 0:00:02.9]}
40... g5 {[%clk 0:01:37.3]} 41. Ke3 {[%clk 0:00:03.2]} 41... gxf4+ {[%clk
0:01:37.4]} 42. gxf4 {[%clk 0:00:03.7]} 42... Kg6 {[%clk 0:01:37.9]} 0-1

[Event "Late-Titled-Tuesday-Blitz-March-05-2024"]
[Site "Chess.com"]
[Date "2024.03.05"]
[Round "2"]
[White "rychessmaster1"]
[Black "traack"]
[Result "1-0"]
[WhiteElo "2706"]
[BlackElo "2442"]
[TimeControl "180+1"]
[EndTime "14:16:42 PST"]
[Termination "rychessmaster1 won by resignation"]

1. d4 {[%clk 0:03:00.9]} 1... Nf6 {[%clk 0:02:58.5]} 2. c4 {[%clk 0:03:01]} 2...
c5 {[%clk 0:02:57.9]} 3. d5 {[%clk 0:03:01]} 3... b5 {[%clk 0:02:57.6]} 4. cxb5
{[%clk 0:03:01.9]} 4... a6 {[%clk 0:02:57.4]} 5. e3 {[%clk 0:03:02.5]} 5... axb5
{[%clk 0:02:57.4]} 6. Bxb5 {[%clk 0:03:03.4]} 6... g6 {[%clk 0:02:57.6]} 7. Nc3
{[%clk 0:03:01]} 7... Bg7 {[%clk 0:02:58]} 8. a4 {[%clk 0:02:57.3]} 8... O-O
{[%clk 0:02:58.1]} 9. Nf3 {[%clk 0:02:56.8]} 9... d6 {[%clk 0:02:58.1]} 10. h3
{[%clk 0:02:52.9]} 10... Ne8 {[%clk 0:02:56.2]} 11. O-O {[%clk 0:02:52]} 11...
Nc7 {[%clk 0:02:56.5]} 12. Bd2 {[%clk 0:02:48.5]} 12... Ba6 {[%clk 0:02:56.6]}
13. Qe2 {[%clk 0:02:45.5]} 13... Qc8 {[%clk 0:02:54.1]} 14. e4 {[%clk
0:02:41.8]} 14... Qb7 {[%clk 0:02:53.8]} 15. Rfb1 {[%clk 0:02:41]} 15... Nd7
{[%clk 0:02:49.3]} 16. Bxa6 {[%clk 0:02:29]} 16... Qxa6 {[%clk 0:02:48.7]} 17.
Nb5 {[%clk 0:02:12.9]} 17... Nxb5 {[%clk 0:02:46]} 18. axb5 {[%clk 0:02:13.6]}
18... Qxa1 {[%clk 0:02:45.2]} 19. Rxa1 {[%clk 0:02:14.5]} 19... Rxa1+ {[%clk
0:02:44.8]} 20. Kh2 {[%clk 0:02:15.3]} 20... Rfa8 {[%clk 0:02:29.8]} 21. Bc3
{[%clk 0:02:14.1]} 21... Nb6 {[%clk 0:02:25.8]} 22. e5 {[%clk 0:02:07.4]} 22...
Nxd5 {[%clk 0:02:23.5]} 23. exd6 {[%clk 0:02:07.4]} 23... Nxc3 {[%clk
0:02:22.1]} 24. bxc3 {[%clk 0:01:45.3]} 24... exd6 {[%clk 0:02:22]} 25. c4
{[%clk 0:01:36.8]} 25... R1a2 {[%clk 0:02:14.4]} 26. Qe4 {[%clk 0:01:34.6]}
26... Rb8 {[%clk 0:02:03.9]} 27. Qc6 {[%clk 0:01:29.5]} 27... Bf8 {[%clk
0:01:47]} 28. Qc7 {[%clk 0:01:22.8]} 28... Re8 {[%clk 0:01:38.2]} 29. Ng5 {[%clk
0:01:16]} 29... Be7 {[%clk 0:01:32.3]} 30. Qd7 {[%clk 0:01:09]} 30... Raa8
{[%clk 0:01:29]} 31. Ne4 {[%clk 0:01:08.7]} 31... Rad8 {[%clk 0:01:25.7]} 32.
Qc6 {[%clk 0:01:08.7]} 32... Kg7 {[%clk 0:01:21.2]} 33. b6 {[%clk 0:01:06.4]}
33... f5 {[%clk 0:01:20.8]} 34. Nc3 {[%clk 0:01:03.2]} 34... Bf6 {[%clk
0:01:17.4]} 35. Nd5 {[%clk 0:01:03.6]} 35... Be5+ {[%clk 0:01:17.3]} 36. f4
{[%clk 0:01:04.3]} 36... Bd4 {[%clk 0:01:17.1]} 37. b7 {[%clk 0:01:02.6]} 37...
Rb8 {[%clk 0:01:11.6]} 38. Qc7+ {[%clk 0:00:58.9]} 38... Kh6 {[%clk 0:01:10.1]}
39. Ne7 {[%clk 0:00:51.6]} 39... Be3 {[%clk 0:01:06.7]} 40. g3 {[%clk 0:00:50]}
40... Bd4 {[%clk 0:00:52.8]} 41. Kg2 {[%clk 0:00:46.9]} 1-0

[Event "Late-Titled-Tuesday-Blitz-March-05-2024"]
[Site "Chess.com"]
[Date "2024.03.05"]
[Round "2"]
[White "Genghis_K"]
[Black "lefonghua"]
[Result "1-0"]
[WhiteElo "2942"]
[BlackElo "2607"]
[TimeControl "180+1"]
[EndTime "14:16:45 PST"]
[Termination "Genghis_K won by resignation"]

1. e4 {[%clk 0:02:54.2]} 1... c5 {[%clk 0:02:59.9]} 2. Nf3 {[%clk 0:02:54.3]}
2... g6 {[%clk 0:03:00.1]} 3. c3 {[%clk 0:02:52.2]} 3... Nc6 {[%clk 0:03:00.2]}
4. d4 {[%clk 0:02:52]} 4... d5 {[%clk 0:03:00.7]} 5. e5 {[%clk 0:02:52.1]} 5...
cxd4 {[%clk 0:03:00.6]} 6. cxd4 {[%clk 0:02:52.3]} 6... Bg4 {[%clk 0:03:01]} 7.
Nbd2 {[%clk 0:02:52.5]} 7... Qb6 {[%clk 0:03:00.3]} 8. h3 {[%clk 0:02:51.6]}
8... Bxf3 {[%clk 0:03:00.1]} 9. Nxf3 {[%clk 0:02:51.8]} 9... e6 {[%clk
0:02:57.7]} 10. a3 {[%clk 0:02:35.6]} 10... Bg7 {[%clk 0:02:53.9]} 11. b4 {[%clk
0:02:33.3]} 11... Nge7 {[%clk 0:02:51]} 12. b5 {[%clk 0:02:31.6]} 12... Na5
{[%clk 0:02:42.2]} 13. a4 {[%clk 0:02:31.2]} 13... Nc4 {[%clk 0:02:38.2]} 14.
Bxc4 {[%clk 0:02:26.6]} 14... dxc4 {[%clk 0:02:38.4]} 15. Ba3 {[%clk 0:02:26.7]}
15... Qa5+ {[%clk 0:02:27.5]} 16. Kf1 {[%clk 0:02:24.7]} 16... Nd5 {[%clk
0:02:21.4]} 17. Ng5 {[%clk 0:02:13.8]} 17... Bf8 {[%clk 0:02:11]} 18. Qf3 {[%clk
0:02:05.5]} 18... Qc7 {[%clk 0:02:00.4]} 19. Bxf8 {[%clk 0:02:01.1]} 19... Rxf8
{[%clk 0:01:59.5]} 20. Nxh7 {[%clk 0:01:59.2]} 20... Rh8 {[%clk 0:01:55.2]} 21.
Nf6+ {[%clk 0:01:57.9]} 21... Nxf6 {[%clk 0:01:47.7]} 22. Qxf6 {[%clk
0:01:58.5]} 22... Rh5 {[%clk 0:01:37.2]} 23. g4 {[%clk 0:01:56.9]} 23... Rh7
{[%clk 0:01:37.3]} 24. Kg2 {[%clk 0:01:51.7]} 24... Rd8 {[%clk 0:01:34.5]} 25.
Rhd1 {[%clk 0:01:49.9]} 25... c3 {[%clk 0:01:31.3]} 26. Rac1 {[%clk 0:01:49.2]}
26... c2 {[%clk 0:01:28.1]} 27. Rd3 {[%clk 0:01:42.7]} 27... Qc4 {[%clk
0:01:19.4]} 28. Qf3 {[%clk 0:01:39.9]} 28... Rd5 {[%clk 0:00:46.5]} 29. Rc3
{[%clk 0:01:35.5]} 29... Qxd4 {[%clk 0:00:46.8]} 30. R1xc2 {[%clk 0:01:31.7]}
30... Qxe5 {[%clk 0:00:46.3]} 31. Rc8+ {[%clk 0:01:30.4]} 31... Kd7 {[%clk
0:00:40.1]} 32. a5 {[%clk 0:01:02.4]} 32... Qd6 {[%clk 0:00:28.9]} 33. Qf6
{[%clk 0:00:47.9]} 1-0

[Event "Late-Titled-Tuesday-Blitz-March-05-2024"]
[Site "Chess.com"]
[Date "2024.03.05"]
[Round "2"]
[White "SameerMujumdar"]
[Black "Harry_Rakkel"]
[Result "0-1"]
[WhiteElo "2441"]
[BlackElo "2694"]
[TimeControl "180+1"]
[EndTime "14:16:45 PST"]
[Termination "Harry_Rakkel won by resignation"]

1. e4 {[%clk 0:03:00.9]} 1... c5 {[%clk 0:02:59.2]} 2. Nf3 {[%clk 0:03:00.9]}
2... e6 {[%clk 0:02:59.3]} 3. d4 {[%clk 0:03:01.2]} 3... cxd4 {[%clk 0:02:59.4]}
4. Nxd4 {[%clk 0:03:02.1]} 4... a6 {[%clk 0:02:58.7]} 5. c4 {[%clk 0:03:01.2]}
5... Nf6 {[%clk 0:02:57.6]} 6. Nc3 {[%clk 0:03:00.5]} 6... Qc7 {[%clk
0:02:57.6]} 7. a3 {[%clk 0:02:59.4]} 7... b6 {[%clk 0:02:56]} 8. Be2 {[%clk
0:02:58.7]} 8... Bb7 {[%clk 0:02:55.4]} 9. f3 {[%clk 0:02:59.4]} 9... Nc6 {[%clk
0:02:54.4]} 10. Be3 {[%clk 0:02:59.4]} 10... Bc5 {[%clk 0:02:53.3]} 11. O-O
{[%clk 0:02:52.6]} 11... Nxd4 {[%clk 0:02:41.9]} 12. Bxd4 {[%clk 0:02:52.2]}
12... O-O {[%clk 0:02:38.2]} 13. b4 {[%clk 0:02:48.1]} 13... Bxd4+ {[%clk
0:02:36.9]} 14. Qxd4 {[%clk 0:02:49]} 14... d5 {[%clk 0:02:22.2]} 15. cxd5
{[%clk 0:02:44.9]} 15... exd5 {[%clk 0:02:22]} 16. e5 {[%clk 0:02:43.8]} 16...
Rac8 {[%clk 0:02:10.3]} 17. Rac1 {[%clk 0:02:39.1]} 17... Nd7 {[%clk 0:02:02.7]}
18. f4 {[%clk 0:02:39.4]} 18... Rfd8 {[%clk 0:01:57]} 19. Bd3 {[%clk 0:02:37.6]}
19... g6 {[%clk 0:01:55.2]} 20. Ne2 {[%clk 0:02:35.5]} 20... Qb8 {[%clk
0:01:54.1]} 21. Bb1 {[%clk 0:02:29.9]} 21... Rxc1 {[%clk 0:01:50.3]} 22. Rxc1
{[%clk 0:02:30.8]} 22... Rc8 {[%clk 0:01:50.5]} 23. Rc3 {[%clk 0:02:22.1]} 23...
Nf8 {[%clk 0:01:45.8]} 24. f5 {[%clk 0:02:20.5]} 24... Rxc3 {[%clk 0:01:38.9]}
25. Nxc3 {[%clk 0:02:20.1]} 25... Qc8 {[%clk 0:01:39.3]} 26. g4 {[%clk
0:02:11.1]} 26... Qd8 {[%clk 0:01:07]} 27. Ne4 {[%clk 0:01:51.3]} 27... Qh4
{[%clk 0:01:06.2]} 28. Nf6+ {[%clk 0:01:51]} 28... Kg7 {[%clk 0:01:06.2]} 29.
Qxb6 {[%clk 0:01:39.9]} 29... Qe1+ {[%clk 0:01:02.7]} 30. Kg2 {[%clk 0:01:39.7]}
30... Qe2+ {[%clk 0:00:48.3]} 31. Kg1 {[%clk 0:01:32.4]} 31... Qxe5 {[%clk
0:00:40.7]} 32. Qxb7 {[%clk 0:01:27.9]} 32... Qe1+ {[%clk 0:00:31.6]} 33. Kg2
{[%clk 0:01:26.1]} 33... Qd2+ {[%clk 0:00:31.7]} 34. Kg3 {[%clk 0:01:20.7]}
34... Qc3+ {[%clk 0:00:31.5]} 35. Kf4 {[%clk 0:00:53.1]} 35... g5+ {[%clk
0:00:30.2]} 0-1

[Event "Late-Titled-Tuesday-Blitz-March-05-2024"]
[Site "Chess.com"]
[Date "2024.03.05"]
[Round "2"]
[White "cristianserban1"]
[Black "Viktor_Poddubnyi"]
[Result "1-0"]
[WhiteElo "2512"]
[BlackElo "2282"]
[TimeControl "180+1"]
[EndTime "14:16:45 PST"]
[Termination "cristianserban1 won on time"]

1. Nf3 {[%clk 0:03:00.9]} 1... g6 {[%clk 0:03:00.3]} 2. b3 {[%clk 0:02:59.8]}
2... Bg7 {[%clk 0:03:00.8]} 3. d4 {[%clk 0:03:00.7]} 3... c5 {[%clk 0:02:59.6]}
4. Bb2 {[%clk 0:03:01.4]} 4... Nc6 {[%clk 0:02:56.7]} 5. e3 {[%clk 0:02:59.9]}
5... cxd4 {[%clk 0:02:53.3]} 6. Nxd4 {[%clk 0:03:00.3]} 6... Nxd4 {[%clk
0:02:45.7]} 7. Bxd4 {[%clk 0:02:56.7]} 7... e5 {[%clk 0:02:32]} 8. Bb2 {[%clk
0:02:56.2]} 8... d5 {[%clk 0:02:31.1]} 9. Bb5+ {[%clk 0:02:52.7]} 9... Kf8
{[%clk 0:02:29.6]} 10. O-O {[%clk 0:02:48.9]} 10... Ne7 {[%clk 0:02:21.7]} 11.
Nd2 {[%clk 0:02:31.7]} 11... Be6 {[%clk 0:01:33.4]} 12. Nf3 {[%clk 0:02:30.1]}
12... f6 {[%clk 0:01:33.4]} 13. Qd2 {[%clk 0:02:15.6]} 13... Kf7 {[%clk
0:01:28.8]} 14. Rfd1 {[%clk 0:02:15]} 14... Qb6 {[%clk 0:01:24.9]} 15. Be2
{[%clk 0:02:14.2]} 15... Rhd8 {[%clk 0:01:24]} 16. a4 {[%clk 0:02:08.7]} 16...
Rac8 {[%clk 0:01:19.4]} 17. a5 {[%clk 0:02:08.4]} 17... Qc7 {[%clk 0:01:18.3]}
18. Rac1 {[%clk 0:01:34]} 18... a6 {[%clk 0:01:00.6]} 19. Bxe5 {[%clk
0:01:23.2]} 19... fxe5 {[%clk 0:00:44.5]} 20. Ng5+ {[%clk 0:01:23.6]} 20... Kf6
{[%clk 0:00:43.6]} 21. Nxh7+ {[%clk 0:01:23.9]} 21... Kf7 {[%clk 0:00:32.7]} 22.
Ng5+ {[%clk 0:01:11.7]} 22... Kf6 {[%clk 0:00:32.7]} 23. e4 {[%clk 0:01:12.2]}
23... d4 {[%clk 0:00:11.5]} 24. Rf1 {[%clk 0:01:01.8]} 24... Bh6 {[%clk
0:00:05.1]} 25. h4 {[%clk 0:00:59.5]} 25... Bxg5 {[%clk 0:00:04.9]} 26. Qxg5+
{[%clk 0:01:00]} 26... Kg7 {[%clk 0:00:04]} 27. f4 {[%clk 0:01:00.7]} 1-0

[Event "Late-Titled-Tuesday-Blitz-March-05-2024"]
[Site "Chess.com"]
[Date "2024.03.05"]
[Round "2"]
[White "Fandorine"]
[Black "MattyDPerrine"]
[Result "1-0"]
[WhiteElo "2920"]
[BlackElo "2598"]
[TimeControl "180+1"]
[EndTime "14:16:47 PST"]
[Termination "Fandorine won on time"]

1. e4 {[%clk 0:03:00.9]} 1... c5 {[%clk 0:02:56.1]} 2. Nf3 {[%clk 0:03:01.1]}
2... e6 {[%clk 0:02:56.4]} 3. b3 {[%clk 0:02:59.3]} 3... a6 {[%clk 0:02:56.1]}
4. Bb2 {[%clk 0:02:59]} 4... Nc6 {[%clk 0:02:56.8]} 5. c4 {[%clk 0:02:59]} 5...
Nf6 {[%clk 0:02:54.8]} 6. e5 {[%clk 0:02:55]} 6... Ng4 {[%clk 0:02:54.9]} 7. h3
{[%clk 0:02:54.4]} 7... Nh6 {[%clk 0:02:55]} 8. Nc3 {[%clk 0:02:49.4]} 8... d6
{[%clk 0:02:33.7]} 9. exd6 {[%clk 0:02:48.1]} 9... e5 {[%clk 0:02:34.6]} 10. Bd3
{[%clk 0:02:40.7]} 10... Bxd6 {[%clk 0:02:19.1]} 11. Be4 {[%clk 0:02:37.4]}
11... Bd7 {[%clk 0:02:15]} 12. O-O {[%clk 0:02:35.8]} 12... O-O {[%clk
0:02:05.8]} 13. Re1 {[%clk 0:02:34.2]} 13... Re8 {[%clk 0:01:39.7]} 14. a3
{[%clk 0:02:16]} 14... Nf5 {[%clk 0:01:31.1]} 15. Nd5 {[%clk 0:02:12.9]} 15...
h6 {[%clk 0:00:55.9]} 16. b4 {[%clk 0:02:10.3]} 16... Rc8 {[%clk 0:00:44.6]} 17.
Rc1 {[%clk 0:01:53.4]} 17... cxb4 {[%clk 0:00:36.4]} 18. axb4 {[%clk 0:01:51.2]}
18... Ncd4 {[%clk 0:00:14.6]} 19. Bxf5 {[%clk 0:01:43.6]} 19... Nxf5 {[%clk
0:00:02.5]} 20. Nxe5 {[%clk 0:01:36]} 20... Be6 {[%clk 0:00:03]} 21. Ne3 {[%clk
0:01:19]} 21... Nxe3 {[%clk 0:00:02.8]} 22. Rxe3 {[%clk 0:01:19.7]} 22... Bxb4
{[%clk 0:00:03.6]} 23. Rg3 {[%clk 0:01:12.8]} 23... f6 {[%clk 0:00:03.5]} 24.
Ng4 {[%clk 0:01:07.2]} 24... Kh8 {[%clk 0:00:01.8]} 25. Nxf6 {[%clk 0:00:48]}
1-0

[Event "Late-Titled-Tuesday-Blitz-March-05-2024"]
[Site "Chess.com"]
[Date "2024.03.05"]
[Round "2"]
[White "FabianoCaruana"]
[Black "Malev212"]
[Result "1-0"]
[WhiteElo "3058"]
[BlackElo "2643"]
[TimeControl "180+1"]
[EndTime "14:16:49 PST"]
[Termination "FabianoCaruana won by resignation"]

1. d4 {[%clk 0:03:00.9]} 1... g6 {[%clk 0:02:49.8]} 2. e4 {[%clk 0:03:00.1]}
2... Bg7 {[%clk 0:02:48.5]} 3. Nc3 {[%clk 0:03:00.8]} 3... c5 {[%clk 0:02:47.9]}
4. d5 {[%clk 0:02:53.9]} 4... d6 {[%clk 0:02:47]} 5. Nf3 {[%clk 0:02:49.4]} 5...
Nf6 {[%clk 0:02:46.6]} 6. Bb5+ {[%clk 0:02:49.1]} 6... Nfd7 {[%clk 0:02:44.2]}
7. a4 {[%clk 0:02:47.9]} 7... O-O {[%clk 0:02:43.7]} 8. O-O {[%clk 0:02:47.7]}
8... Na6 {[%clk 0:02:43.4]} 9. Re1 {[%clk 0:02:46]} 9... Nc7 {[%clk 0:02:42.9]}
10. Bf1 {[%clk 0:02:46.2]} 10... a6 {[%clk 0:02:07.9]} 11. Bf4 {[%clk
0:02:44.7]} 11... Nf6 {[%clk 0:02:07.5]} 12. h3 {[%clk 0:02:42.3]} 12... Rb8
{[%clk 0:01:58.6]} 13. e5 {[%clk 0:02:41.4]} 13... dxe5 {[%clk 0:01:40.2]} 14.
Bxe5 {[%clk 0:02:40.1]} 14... b6 {[%clk 0:01:30.6]} 15. d6 {[%clk 0:02:30.5]}
15... exd6 {[%clk 0:01:26.5]} 16. Qxd6 {[%clk 0:02:25]} 16... Rb7 {[%clk
0:01:26]} 17. Rad1 {[%clk 0:02:12.4]} 17... Qxd6 {[%clk 0:00:41.8]} 18. Bxd6
{[%clk 0:02:13.3]} 18... Re8 {[%clk 0:00:41.3]} 19. Ne5 {[%clk 0:02:10.6]} 19...
Bf8 {[%clk 0:00:29.9]} 20. Bc4 {[%clk 0:01:37]} 20... Be6 {[%clk 0:00:29]} 21.
Bxc7 {[%clk 0:01:28.4]} 21... Rxc7 {[%clk 0:00:28.9]} 22. Bxa6 {[%clk 0:01:27]}
22... c4 {[%clk 0:00:28.9]} 23. Bb5 {[%clk 0:01:25.2]} 23... Rec8 {[%clk
0:00:26.5]} 24. Nf3 {[%clk 0:01:21.8]} 24... Bb4 {[%clk 0:00:25.1]} 25. Nd4
{[%clk 0:01:19.5]} 25... Bd7 {[%clk 0:00:20.8]} 26. Re5 {[%clk 0:01:15]} 26...
Bxc3 {[%clk 0:00:17]} 27. bxc3 {[%clk 0:01:15.2]} 27... Bxb5 {[%clk 0:00:16.7]}
28. Nxb5 {[%clk 0:01:12.1]} 28... Rc5 {[%clk 0:00:14.9]} 29. Re7 {[%clk
0:01:09.2]} 29... Ra8 {[%clk 0:00:13.2]} 30. Rd6 {[%clk 0:00:59.6]} 30... Rxa4
{[%clk 0:00:08.1]} 31. Rxf6 {[%clk 0:00:58.3]} 31... Rxb5 {[%clk 0:00:06.3]} 32.
Rfxf7 {[%clk 0:00:58.8]} 1-0

[Event "Late-Titled-Tuesday-Blitz-March-05-2024"]
[Site "Chess.com"]
[Date "2024.03.05"]
[Round "2"]
[White "steepedgames"]
[Black "Rud_2008"]
[Result "0-1"]
[WhiteElo "2536"]
[BlackElo "2738"]
[TimeControl "180+1"]
[EndTime "14:17:00 PST"]
[Termination "Rud_2008 won by resignation"]

1. d4 {[%clk 0:03:00.9]} 1... Nf6 {[%clk 0:02:56.2]} 2. Bg5 {[%clk 0:02:58.8]}
2... Ne4 {[%clk 0:02:56.3]} 3. Bf4 {[%clk 0:02:57]} 3... d5 {[%clk 0:02:56.5]}
4. f3 {[%clk 0:02:57]} 4... Nf6 {[%clk 0:02:55.5]} 5. c4 {[%clk 0:02:57.6]} 5...
e6 {[%clk 0:02:53.6]} 6. Nc3 {[%clk 0:02:57.2]} 6... c6 {[%clk 0:02:51.6]} 7. e3
{[%clk 0:02:56.3]} 7... Nbd7 {[%clk 0:02:50.5]} 8. Bd3 {[%clk 0:02:52.3]} 8...
dxc4 {[%clk 0:02:50]} 9. Bxc4 {[%clk 0:02:52.1]} 9... b5 {[%clk 0:02:50.6]} 10.
Bd3 {[%clk 0:02:50.3]} 10... a6 {[%clk 0:02:50.6]} 11. Nge2 {[%clk 0:02:48]}
11... c5 {[%clk 0:02:50.3]} 12. O-O {[%clk 0:02:45.8]} 12... Bb7 {[%clk
0:02:50.3]} 13. Kh1 {[%clk 0:02:34.8]} 13... Be7 {[%clk 0:02:47.7]} 14. Rc1
{[%clk 0:02:32]} 14... O-O {[%clk 0:02:47.4]} 15. Bg3 {[%clk 0:02:31.7]} 15...
Qb6 {[%clk 0:02:47.4]} 16. Bb1 {[%clk 0:02:16]} 16... Rfd8 {[%clk 0:02:44.5]}
17. Qe1 {[%clk 0:02:08.6]} 17... Rac8 {[%clk 0:02:42]} 18. Bf2 {[%clk
0:02:01.1]} 18... e5 {[%clk 0:02:35.4]} 19. dxe5 {[%clk 0:01:54.3]} 19... Nxe5
{[%clk 0:02:36.3]} 20. Nf4 {[%clk 0:01:48.3]} 20... b4 {[%clk 0:01:34.2]} 21.
Ne4 {[%clk 0:01:44.1]} 21... Nxe4 {[%clk 0:01:33.3]} 22. fxe4 {[%clk 0:01:43.2]}
22... c4 {[%clk 0:01:29.7]} 23. Nd5 {[%clk 0:01:39.1]} 23... Qe6 {[%clk
0:01:17.5]} 24. Nxb4 {[%clk 0:01:27.7]} 24... Nd3 {[%clk 0:01:05.8]} 25. Nxd3
{[%clk 0:01:21.4]} 25... cxd3 {[%clk 0:01:03.2]} 26. Rxc8 {[%clk 0:01:20.8]}
26... Bxc8 {[%clk 0:01:02.1]} 27. Qa5 {[%clk 0:00:57.5]} 27... Qxe4 {[%clk
0:00:54.7]} 28. Be1 {[%clk 0:00:52.9]} 28... Bb7 {[%clk 0:00:52.8]} 29. Rg1
{[%clk 0:00:52.1]} 29... Qxe3 {[%clk 0:00:37.8]} 30. Bb4 {[%clk 0:00:48.1]}
30... d2 {[%clk 0:00:32.7]} 31. Bxe7 {[%clk 0:00:31.9]} 31... Qxg1+ {[%clk
0:00:32.3]} 32. Kxg1 {[%clk 0:00:30.5]} 32... d1=Q+ {[%clk 0:00:32.7]} 33. Kf2
{[%clk 0:00:30.8]} 33... Rd2+ {[%clk 0:00:31.8]} 0-1

[Event "Late-Titled-Tuesday-Blitz-March-05-2024"]
[Site "Chess.com"]
[Date "2024.03.05"]
[Round "2"]
[White "adricalderon8"]
[Black "SamCopeland"]
[Result "0-1"]
[WhiteElo "2512"]
[BlackElo "2337"]
[TimeControl "180+1"]
[EndTime "14:17:01 PST"]
[Termination "SamCopeland won by resignation"]

1. d4 {[%clk 0:03:00.9]} 1... f5 {[%clk 0:02:54.9]} 2. Nf3 {[%clk 0:02:57.8]}
2... Nf6 {[%clk 0:02:54]} 3. c4 {[%clk 0:02:56.3]} 3... g6 {[%clk 0:02:52.3]} 4.
g3 {[%clk 0:02:55.5]} 4... Bg7 {[%clk 0:02:40]} 5. Bg2 {[%clk 0:02:56.4]} 5...
O-O {[%clk 0:02:39.8]} 6. O-O {[%clk 0:02:55.2]} 6... d6 {[%clk 0:02:39.7]} 7.
Nc3 {[%clk 0:02:49.9]} 7... Qe8 {[%clk 0:02:27.4]} 8. d5 {[%clk 0:02:46.7]} 8...
a5 {[%clk 0:02:24.3]} 9. Be3 {[%clk 0:02:41]} 9... Na6 {[%clk 0:02:16.8]} 10.
Rc1 {[%clk 0:02:40.5]} 10... b6 {[%clk 0:02:09.3]} 11. Bd4 {[%clk 0:02:39.9]}
11... Nc5 {[%clk 0:02:09]} 12. Nb5 {[%clk 0:02:38.9]} 12... Qd8 {[%clk
0:02:06.8]} 13. Ng5 {[%clk 0:02:37]} 13... Bd7 {[%clk 0:02:05.7]} 14. a4 {[%clk
0:02:30.1]} 14... h6 {[%clk 0:02:04.9]} 15. Ne6 {[%clk 0:02:28.6]} 15... Bxe6
{[%clk 0:02:02.9]} 16. dxe6 {[%clk 0:02:28.7]} 16... Nxe6 {[%clk 0:01:58.5]} 17.
Bxa8 {[%clk 0:02:26]} 17... Qxa8 {[%clk 0:01:59.4]} 18. Bxf6 {[%clk 0:02:24.4]}
18... Bxf6 {[%clk 0:01:57.7]} 19. Qd5 {[%clk 0:02:24.7]} 19... Qxd5 {[%clk
0:01:45.6]} 20. cxd5 {[%clk 0:02:25.6]} 20... Nc5 {[%clk 0:01:44.6]} 21. Nxc7
{[%clk 0:02:25.6]} 21... Nxa4 {[%clk 0:01:38.7]} 22. Ne6 {[%clk 0:02:23.3]}
22... Rb8 {[%clk 0:01:32.8]} 23. b3 {[%clk 0:02:23.2]} 23... Nc5 {[%clk
0:01:28.5]} 24. Nxc5 {[%clk 0:02:21.5]} 24... bxc5 {[%clk 0:01:29.4]} 25. Rb1
{[%clk 0:02:21.6]} 25... Rb4 {[%clk 0:01:24.5]} 26. Rfd1 {[%clk 0:02:18.5]}
26... Kf7 {[%clk 0:01:23.1]} 27. e3 {[%clk 0:02:17.5]} 27... g5 {[%clk
0:01:22.3]} 28. Kf1 {[%clk 0:02:17.2]} 28... f4 {[%clk 0:01:20.8]} 29. gxf4
{[%clk 0:02:12.1]} 29... gxf4 {[%clk 0:01:20.7]} 30. Ke2 {[%clk 0:02:12.5]}
30... Be5 {[%clk 0:01:15.1]} 31. h3 {[%clk 0:02:04]} 31... Kf6 {[%clk
0:01:11.7]} 32. Rdc1 {[%clk 0:01:59.5]} 32... Kf5 {[%clk 0:01:07.2]} 33. Rc4
{[%clk 0:01:56.3]} 33... Rxc4 {[%clk 0:00:57.2]} 34. bxc4 {[%clk 0:01:56.3]}
34... a4 {[%clk 0:00:44.9]} 35. Rb7 {[%clk 0:01:47.7]} 35... a3 {[%clk
0:00:39.8]} 36. Ra7 {[%clk 0:01:45.6]} 36... Bb2 {[%clk 0:00:38.4]} 37. Kf3
{[%clk 0:01:45.8]} 37... fxe3 {[%clk 0:00:37.7]} 38. fxe3 {[%clk 0:01:45]} 38...
Kg5 {[%clk 0:00:33.7]} 39. Ke4 {[%clk 0:01:42.7]} 39... Kh4 {[%clk 0:00:29.9]}
40. Kd3 {[%clk 0:01:34]} 40... Kxh3 {[%clk 0:00:29]} 41. Kc2 {[%clk 0:01:34.5]}
41... Bf6 {[%clk 0:00:20.5]} 42. Rxa3 {[%clk 0:01:33.3]} 42... Kg2 {[%clk
0:00:19.2]} 43. Kd3 {[%clk 0:01:33.4]} 43... h5 {[%clk 0:00:19.1]} 44. Ke4
{[%clk 0:01:33.8]} 44... h4 {[%clk 0:00:19.2]} 45. Ra2+ {[%clk 0:01:34.5]} 45...
Kg3 {[%clk 0:00:19.2]} 46. Ra8 {[%clk 0:01:30.2]} 46... h3 {[%clk 0:00:17.9]}
47. Rg8+ {[%clk 0:01:30.3]} 47... Kf2 {[%clk 0:00:15.5]} 48. Ra8 {[%clk
0:01:23.6]} 48... h2 {[%clk 0:00:13.8]} 49. Ra2+ {[%clk 0:01:24.1]} 49... Kg3
{[%clk 0:00:11.9]} 0-1